{"text_format":"1","workbook":"xlsx","n_sheets":2,"sheets":["Tillatt totalfeil Hematologi","BeregningKTR_Regel_Sysmex"],"not_rendered":{"charts":0,"images":1,"macros":1,"external_links":0,"defined_names":2,"comments":0,"pivot_tables":0},"unopened":[],"bounds":{"document_bytes":16777216,"sheet_cells":100000,"rows_first":2000,"rows_last":500,"rows_between":2000,"halvings":0,"cell_chars":16384,"cell_head_chars":4096},"cells_cut":0,"cells_raw":0,"read":"whole","date_system":"1900"}

{"sheet":"Tillatt totalfeil Hematologi","index":0,"n_rows":14,"n_cols":7,"rows_kept":14,"cut":false,"hidden":false,"merged":[]}
["EQSDoc 25150 v. 1.9"]
[]
[]
[]
["Analyse","Tillatt totalfeil i % (Tea%)"]
[]
["WBC-BF","± oppgitt grenser"]
["RBC-BF","± oppgitt grenser"]
["TC-BF","± oppgitt grenser"]
["MN#","± oppgitt grenser"]
["PMN#","± oppgitt grenser"]
[]
[]
["Laboratoriet velger å benytte produsentens oppgitte verdier for denne kontrollen, se EQSDoc 7002:",null,null,null,null,null,"ALM-MB-; Overordnet prosedyre for overvåking og styring av kvaliteten på analyser vha tillatt totalfeil og QM"]

{"sheet":"BeregningKTR_Regel_Sysmex","index":1,"n_rows":24,"n_cols":19,"rows_kept":24,"cut":false,"hidden":false,"merged":[[12,0,15,18],[0,0,0,2],[30,1,30,2],[30,5,30,6],[0,8,0,9],[1,8,1,9],[2,8,2,9],[0,3,0,4],[1,3,1,4],[0,5,0,6],[1,1,1,2],[3,0,3,17],[2,1,2,2],[1,5,1,6],[2,5,2,6],[2,3,2,4]]}
["EQSDoc 25150 v. 1.9",null,null,"INSTRUMENT: ",null,"SYSMEX XN",null,"Endret (dato/sign):"]
["Lot nr lav",null,null,"Tas i bruk (dato/sign):",null,null,null,"Endret (dato/sign):"]
["Lot nr normal",null,null,"Endret (dato/sign):",null,null,null,"Endret (dato/sign):"]
["   \nLegg inn \"Nivå\" og \"Aksjonsgrense\", se Sysmex ® QC File ® BF Control Level1 ® Target ± limit (eksempel Target ± Target minus LL)\n"]
["Analyse","KTR","Nivå (kons)","CV%","Tea%","Tea som s","Syst. feil","SE som s","Antall kontr","Kregel","Pfr","Ped","Samlet Pfr","Samlet Ped","Aksjons-grense +/-","CViQM%","Kommentar","Limit range %","SD i Beaker"]
["WBC-BF","Lav",null,null,null,{"$f":"E6/D6","v":{"$error":"#DIV/0!"}},0,{"$f":"F6-G6-1.65","v":{"$error":"#DIV/0!"}},1,null,{"$f":"1-(NORMDIST(J6,0,1,TRUE)-NORMDIST(-J6,0,1,TRUE))^I6","v":1},{"$f":"1-(NORMDIST(J6,H6,1,TRUE)-NORMDIST(-J6,H6,1,TRUE))^I6","v":{"$error":"#DIV/0!"}},{"$f":"1-((1-K6)*(1-#REF!))","v":{"$error":"#REF!"}},{"$f":"1-((1-L6)*(1-#REF!))","v":{"$error":"#DIV/0!"}},null,{"$f":"((O6/3)*100)/C6","v":{"$error":"#DIV/0!"}},null,{"$f":"(100/C6)*O6","v":{"$error":"#DIV/0!"}},{"$f":"O6/3","v":0}]
["RBC-BF","Lav",null,null,null,{"$f":"E7/D7","v":{"$error":"#DIV/0!"}},0,{"$f":"F7-G7-1.65","v":{"$error":"#DIV/0!"}},1,null,{"$f":"1-(NORMDIST(J7,0,1,TRUE)-NORMDIST(-J7,0,1,TRUE))^I7","v":1},{"$f":"1-(NORMDIST(J7,H7,1,TRUE)-NORMDIST(-J7,H7,1,TRUE))^I7","v":{"$error":"#DIV/0!"}},{"$f":"1-((1-K7)*(1-#REF!))","v":{"$error":"#REF!"}},{"$f":"1-((1-L7)*(1-#REF!))","v":{"$error":"#DIV/0!"}},null,{"$f":"((O7/3)*100)/C7","v":{"$error":"#DIV/0!"}},null,{"$f":"(100/C7)*O7","v":{"$error":"#DIV/0!"}},{"$f":"O7/3","v":0}]
["MN%","Lav",null,null,null,{"$f":"E8/D8","v":{"$error":"#DIV/0!"}},0,{"$f":"F8-G8-1.65","v":{"$error":"#DIV/0!"}},1,null,{"$f":"1-(NORMDIST(J8,0,1,TRUE)-NORMDIST(-J8,0,1,TRUE))^I8","v":1},{"$f":"1-(NORMDIST(J8,H8,1,TRUE)-NORMDIST(-J8,H8,1,TRUE))^I8","v":{"$error":"#DIV/0!"}},{"$f":"1-((1-K8)*(1-#REF!))","v":{"$error":"#REF!"}},{"$f":"1-((1-L8)*(1-#REF!))","v":{"$error":"#DIV/0!"}},null,{"$f":"((O8/3)*100)/C8","v":{"$error":"#DIV/0!"}},null,{"$f":"(100/C8)*O8","v":{"$error":"#DIV/0!"}},{"$f":"O8/3","v":0}]
["PMN%","Lav",null,null,null,{"$f":"E9/D9","v":{"$error":"#DIV/0!"}},0,{"$f":"F9-G9-1.65","v":{"$error":"#DIV/0!"}},1,null,{"$f":"1-(NORMDIST(J9,0,1,TRUE)-NORMDIST(-J9,0,1,TRUE))^I9","v":1},{"$f":"1-(NORMDIST(J9,H9,1,TRUE)-NORMDIST(-J9,H9,1,TRUE))^I9","v":{"$error":"#DIV/0!"}},{"$f":"1-((1-K9)*(1-#REF!))","v":{"$error":"#REF!"}},{"$f":"1-((1-L9)*(1-#REF!))","v":{"$error":"#DIV/0!"}},null,{"$f":"((O9/3)*100)/C9","v":{"$error":"#DIV/0!"}},null,{"$f":"(100/C9)*O9","v":{"$error":"#DIV/0!"}},{"$f":"O9/3","v":0}]
["Kommentar:"]
[]
[]
["Det kjøres bare ett nivå for denne kontrollen. Det er XN CHECK BF Level 1.  I mangel på oppgitte verdier for TEa for kroppsvesker, benytter vi grensene oppgitt av produsenten."]
[]
[]
[]
["CViQM%: Denne er slik at 3 s i QM er gir samme tillatt feil som Kregel gir."]
[]
["Krav til samlet Ped og Pfr når bias (syst. feil) er lik 0 for to kontroller, hvor en i lavt nivå og en i normalt/høyt nivå:"]
[]
["Samlet:","Ped","> 90 % (min 88 % tillates unntaksvis)"]
[null,"Pfr","< 1,5 %"]
[]
["Enkeltvis:","Ped","> 70 %"]